[Event "EIWCC 2017"]
[Site "Riga"]
[Date "2017.04.12"]
[Round "2"]
[White "Ziaziulkina, Nastassia"]
[Black "De Seroux, Camille"]
[Result "1/2-1/2"]
[ECO "B63"]
[WhiteElo "2387"]
[BlackElo "2122"]
[Annotator "ChessBase"]
[PlyCount "107"]
[EventDate "2017.??.??"]
[EventType "swiss"]
[EventCountry "LAT"]
[SourceTitle "playchess.com"]
[Source "ChessBase"]
[SourceQuality "1"]
[TimeControl "40/5400+30:1800+30"]

1. e4 {[%emt 0:00:00]} c5 {[%emt 0:00:08]} 2. Nf3 {[%emt 0:00:00]} Nc6 {[%emt 0:00:05]} 3. d4 {[%emt 0:00:11]} cxd4 {[%emt 0:00:07]} 4. Nxd4 {[%emt 0:00:03]} Nf6 {[%emt 0:00:10]} 5. Nc3 {[%emt 0:00:04]} d6 {[%emt 0:00:05]} 6. Bg5 {[%emt 0:00:24]} e6 {[%emt 0:00:08]} 7. Qd2 {[%emt 0:01:07]} Qb6 {[%emt 0:00:09]} 8. Bxf6 {[%emt 0:00:27]} gxf6 {[%emt 0:00:08]} 9. Nb3 {[%emt 0:00:04]} Bd7 {[%emt 0:00:56]} 10. Be2 {[%emt 0:00:48]} h5 {[%emt 0:00:25]} 11. f4 {[%emt 0:01:41]} O-O-O {[%emt 0:08:38]} 12. Rf1 {[%emt 0:10:05]} Na5 {[%emt 0:11:39]} 13. Nxa5 {[%emt 0:15:47]} Qxa5 {[%emt 0:00:10]} 14. O-O-O {[%emt 0:00:09]} Be7 {[%emt 0:06:49]} 15. Kb1 {[%emt 0:10:46]} Kb8 {[%emt 0:00:35]} 16. f5 {[%emt 0:01:44]} Rdg8 {[%emt 0:12:58]} 17. Bf3 {[%emt 0:02:23]} Qe5 {[%emt 0:07:16]} 18. h4 {[%emt 0:04:58]} Bc6 {[%emt 0:09:12]} 19. Qe2 {[%emt 0:10:25]} Qg3 {[%emt 0:08:09]} 20. Rh1 {[%emt 0:11:32]} Rh7 {[%emt 0:02:35]} 21. Qc4 {[%emt 0:10:37]} Qe5 {[%emt 0:07:16]} 22. Nd5 {[%emt 0:07:04]} Bxd5 {[%emt 0:09:13]} 23. exd5 {[%emt 0:00:11]} Qxf5 {[%emt 0:01:46]} 24. dxe6 {[%emt 0:08:23]} fxe6 {[%emt 0:03:24]} 25. Be4 {[%emt 0:00:02]} Qg4 {[%emt 0:01:08]} 26. Rd4 {[%emt 0:00:19]} Rc8 {[%emt 0:04:33]} 27. Qb5 {[%emt 0:01:12]} Bf8 {[%emt 0:01:49]} 28. Ra4 {[%emt 0:02:37]} f5 {[%emt 0:02:37]} 29. Bf3 {[%emt 0:00:50]} Qg7 {[%emt 0:00:59]} 30. Qa5 {[%emt 0:00:30]} a6 {[%emt 0:01:24]} 31. Rb4 {[%emt 0:00:31]} d5 {[%emt 0:00:36]} 32. Rb3 {[%emt 0:00:15]} Qc7 {[%emt 0:00:36]} 33. Qd2 {[%emt 0:00:02]} Bg7 {[%emt 0:00:41]} 34. Re1 {[%emt 0:00:26]} Qc6 {[%emt 0:00:26]} 35. Re2 {[%emt 0:00:44]} Bh6 {[%emt 0:00:30]} 36. Qd4 {[%emt 0:00:33]} Rhc7 {[%emt 0:00:27]} 37. Qf6 {[%emt 0:00:42]} Bg7 {[%emt 0:00:33]} 38. Qxe6 {[%emt 0:00:04]} Qxe6 {[%emt 0:00:20]} 39. Rxe6 {[%emt 0:00:02]} Rxc2 {[%emt 0:00:13]} 40. a3 {[%emt 0:00:00]} Rd2 {[%emt 0:01:00]} 41. Rg6 {[%emt 0:10:08]} Be5 {[%emt 0:03:32]} 42. Bxh5 {[%emt 0:01:33]} Bd4 {[%emt 0:17:15]} 43. Rd6 {[%emt 0:04:07]} Rxg2 {[%emt 0:03:45]} 44. Rxd5 {[%emt 0:00:44]} Rg1+ {[%emt 0:01:46]} 45. Ka2 {[%emt 0:00:04]} Rcc1 {[%emt 0:00:28]} 46. Rd3 {[%emt 0:06:13]} Bf6 {[%emt 0:01:18]} 47. Rxf5 {[%emt 0:01:50]} Bxh4 {[%emt 0:00:29]} 48. Bf3 {[%emt 0:00:12]} Rg7 {[%emt 0:01:57]} 49. Rb3 {[%emt 0:02:05]} Re7 {[%emt 0:02:29]} 50. Rf4 {[%emt 0:03:09]} Be1 {[%emt 0:00:13]} 51. Rf6 {[%emt 0:01:23]} Ka7 {[%emt 0:00:22]} 52. Rf8 {[%emt 0:00:33]} Rc2 {[%emt 0:01:11]} 53. Re8 {[%emt 0:02:39]} Rcc7 {[%emt 0:00:56]} 54. Rxe7 {[%emt 0:01:11]} 1/2-1/2

[Event "EIWCC 2017"]
[Site "Riga"]
[Date "2017.04.12"]
[Round "2"]
[White "Charochkina, Daria"]
[Black "Gvetadze, Sofio"]
[Result "1/2-1/2"]
[ECO "D35"]
[WhiteElo "2381"]
[BlackElo "2292"]
[Annotator "ChessBase"]
[PlyCount "117"]
[EventDate "2017.??.??"]
[EventType "swiss"]
[EventCountry "LAT"]
[SourceTitle "playchess.com"]
[Source "ChessBase"]
[SourceQuality "1"]
[TimeControl "40/5400+30:1800+30"]

1. c4 {[%emt 0:00:00]} e6 {[%emt 0:00:22]} 2. Nc3 {[%emt 0:00:00]} d5 {[%emt 0:00:49]} 3. d4 {[%emt 0:00:00]} Nf6 {[%emt 0:00:23]} 4. cxd5 {[%emt 0:00:11]} exd5 {[%emt 0:00:08]} 5. Bg5 {[%emt 0:00:09]} Bb4 {[%emt 0:01:15]} 6. e3 {[%emt 0:00:16]} c5 {[%emt 0:01:07]} 7. dxc5 {[%emt 0:10:32]} Be6 {[%emt 0:01:23]} 8. Bb5+ {[%emt 0:08:31]} Nc6 {[%emt 0:05:22]} 9. Qa4 {[%emt 0:04:13]} O-O {[%emt 0:01:44]} 10. Bxc6 {[%emt 0:01:37]} Bxc3+ {[%emt 0:00:06]} 11. bxc3 {[%emt 0:00:06]} bxc6 {[%emt 0:00:03]} 12. Ne2 {[%emt 0:04:46]} h6 {[%emt 0:03:07]} 13. Bxf6 {[%emt 0:00:17]} Qxf6 {[%emt 0:00:17]} 14. O-O {[%emt 0:00:46]} Qe7 {[%emt 0:02:34]} 15. Qa5 {[%emt 0:05:07]} Bf5 {[%emt 0:06:12]} 16. Nd4 {[%emt 0:08:04]} Be4 {[%emt 0:06:35]} 17. Nxc6 {[%emt 0:00:44]} Qg5 {[%emt 0:00:33]} 18. f3 {[%emt 0:00:14]} Qxe3+ {[%emt 0:01:36]} 19. Kh1 {[%emt 0:00:08]} Bd3 {[%emt 0:00:58]} 20. Rfe1 {[%emt 0:00:39]} Qf2 {[%emt 0:01:53]} 21. Ne7+ {[%emt 0:05:06]} Kh8 {[%emt 0:00:33]} 22. c6 {[%emt 0:03:02]} Bc4 {[%emt 0:07:49]} 23. c7 {[%emt 0:01:37]} Rfe8 {[%emt 0:00:31]} 24. Qa4 {[%emt 0:00:48]} Kh7 {[%emt 0:06:34]} 25. Qd7 {[%emt 0:07:08]} g6 {[%emt 0:00:36]} 26. Rg1 {[%emt 0:01:50]} Bb5 {[%emt 0:03:25]} 27. Qxd5 {[%emt 0:02:41]} Rxe7 {[%emt 0:00:05]} 28. Qxa8 {[%emt 0:00:07]} Rxc7 {[%emt 0:00:04]} 29. Qd5 {[%emt 0:01:04]} Bc4 {[%emt 0:04:24]} 30. Qd4 {[%emt 0:03:03]} Qc2 {[%emt 0:00:05]} 31. Qf4 {[%emt 0:10:32]} Rc5 {[%emt 0:01:02]} 32. Qe3 {[%emt 0:02:43]} Rg5 {[%emt 0:03:33]} 33. Rac1 {[%emt 0:02:19]} Qa4 {[%emt 0:06:43]} 34. Qd2 {[%emt 0:03:52]} Rd5 {[%emt 0:01:44]} 35. Qc2 {[%emt 0:01:08]} Qa6 {[%emt 0:00:31]} 36. Rgd1 {[%emt 0:01:01]} Ra5 {[%emt 0:00:09]} 37. Ra1 {[%emt 0:06:27]} Re5 {[%emt 0:00:18]} 38. Re1 {[%emt 0:01:20]} Rh5 {[%emt 0:00:34]} 39. Qd2 {[%emt 0:01:54]} Bd5 {[%emt 0:01:42]} 40. Qf4 {[%emt 0:00:00]} Rf5 {[%emt 0:00:39]} 41. Qd4 {[%emt 0:07:49]} Qc6 {[%emt 0:00:19]} 42. Re3 {[%emt 0:02:25]} a6 {[%emt 0:01:17]} 43. h3 {[%emt 0:01:58]} Be6 {[%emt 0:00:27]} 44. Rb1 {[%emt 0:04:26]} Rd5 {[%emt 0:02:13]} 45. Qf6 {[%emt 0:05:06]} Qd6 {[%emt 0:02:36]} 46. Rbe1 {[%emt 0:02:09]} Rf5 {[%emt 0:01:07]} 47. Qd4 {[%emt 0:00:23]} Rd5 {[%emt 0:00:09]} 48. Qa7 {[%emt 0:04:11]} Kg8 {[%emt 0:00:09]} 49. R3e2 {[%emt 0:04:19]} Rd3 {[%emt 0:02:19]} 50. c4 {[%emt 0:01:35]} Bxc4 {[%emt 0:02:13]} 51. Re8+ {[%emt 0:00:40]} Kh7 {[%emt 0:00:17]} 52. Qb7 {[%emt 0:02:09]} Qf6 {[%emt 0:03:08]} 53. a4 {[%emt 0:01:38]} Bd5 {[%emt 0:03:06]} 54. Qd7 {[%emt 0:00:04]} Qxf3 {[%emt 0:06:25]} 55. Rh8+ {[%emt 0:03:08]} Kg7 {[%emt 0:00:02]} 56. Rg8+ {[%emt 0:00:52]} Kh7 {[%emt 0:00:10]} 57. Rh8+ {[%emt 0:00:47]} Kg7 {[%emt 0:00:05]} 58. Rg8+ {[%emt 0:00:38]} Kh7 {[%emt 0:00:08]} 59. Rh8+ {[%emt 0:00:27]} 1/2-1/2

[Event "EIWCC 2017"]
[Site "Riga"]
[Date "2017.04.12"]
[Round "2"]
[White "Papp, Petra"]
[Black "Doluhanova, Evgeniya"]
[Result "1-0"]
[ECO "B30"]
[WhiteElo "2378"]
[BlackElo "2287"]
[Annotator "ChessBase"]
[PlyCount "107"]
[EventDate "2017.??.??"]
[EventType "swiss"]
[EventCountry "LAT"]
[SourceTitle "playchess.com"]
[Source "ChessBase"]
[SourceQuality "1"]
[TimeControl "40/5400+30:1800+30"]

1. e4 {[%emt 0:00:00]} c5 {[%emt 0:00:06]} 2. Nf3 {[%emt 0:00:00]} Nc6 {[%emt 0:00:16]} 3. Nc3 {[%emt 0:01:50]} e5 {[%emt 0:00:27]} 4. Bc4 {[%emt 0:00:52]} d6 {[%emt 0:00:30]} 5. d3 {[%emt 0:01:14]} Be7 {[%emt 0:00:07]} 6. O-O {[%emt 0:01:21]} Nf6 {[%emt 0:00:16]} 7. Ng5 {[%emt 0:04:29]} O-O {[%emt 0:00:15]} 8. f4 {[%emt 0:00:44]} Bg4 {[%emt 0:00:49]} 9. Qe1 {[%emt 0:14:26]} h6 {[%emt 0:07:10]} 10. Nf3 {[%emt 0:04:01]} exf4 {[%emt 0:03:51]} 11. Bxf4 {[%emt 0:01:02]} Nh5 {[%emt 0:01:04]} 12. Be3 {[%emt 0:03:21]} Bf6 {[%emt 0:12:33]} 13. Rb1 {[%emt 0:23:22]} Bxf3 {[%emt 0:40:28]} 14. Rxf3 {[%emt 0:02:52]} Bd4 {[%emt 0:00:54]} 15. Kh1 {[%emt 0:11:07]} Ne5 {[%emt 0:13:16]} 16. Rh3 {[%emt 0:03:39]} Bxe3 {[%emt 0:00:57]} 17. Qxe3 {[%emt 0:01:19]} Nf6 {[%emt 0:00:26]} 18. Rf1 {[%emt 0:01:42]} Nxc4 {[%emt 0:07:38]} 19. dxc4 {[%emt 0:01:00]} Re8 {[%emt 0:00:12]} 20. Rg3 {[%emt 0:04:41]} Kf8 {[%emt 0:03:52]} 21. Rgf3 {[%emt 0:01:08]} Re6 {[%emt 0:01:06]} 22. Nd5 {[%emt 0:07:18]} Rxe4 {[%emt 0:00:59]} 23. Qc3 {[%emt 0:02:36]} Rd4 {[%emt 0:01:16]} 24. Nxf6 {[%emt 0:01:34]} gxf6 {[%emt 0:00:05]} 25. Qe3 {[%emt 0:00:36]} Kg7 {[%emt 0:02:10]} 26. Qf2 {[%emt 0:04:54]} Qd7 {[%emt 0:02:00]} 27. Rxf6 {[%emt 0:00:35]} Rf8 {[%emt 0:00:06]} 28. h3 {[%emt 0:00:41]} Qe7 {[%emt 0:00:42]} 29. Qf3 {[%emt 0:01:09]} Re4 {[%emt 0:00:34]} 30. b3 Re6 {[%emt 0:00:46]} 31. Qg4+ {[%emt 0:01:16]} Kh7 {[%emt 0:00:04]} 32. Qh4 {[%emt 0:00:27]} Rxf6 {[%emt 0:00:17]} 33. Rxf6 {[%emt 0:00:04]} Qe3 {[%emt 0:00:04]} 34. Rxd6 {[%emt 0:01:05]} Re8 {[%emt 0:01:20]} 35. Rd7 {[%emt 0:00:34]} Kg7 {[%emt 0:00:46]} 36. Qg4+ {[%emt 0:00:13]} Kf8 {[%emt 0:00:06]} 37. Qf5 {[%emt 0:00:38]} Re7 {[%emt 0:00:27]} 38. Rd8+ {[%emt 0:00:26]} Kg7 {[%emt 0:00:23]} 39. Qg4+ {[%emt 0:00:35]} Qg5 {[%emt 0:00:17]} 40. Qxg5+ {[%emt 0:00:00]} hxg5 {[%emt 0:00:05]} 41. Rd5 {[%emt 0:01:26]} Kg6 {[%emt 0:05:47]} 42. Rxc5 {[%emt 0:01:17]} Re2 {[%emt 0:00:37]} 43. Rc7 {[%emt 0:08:06]} Rxc2 {[%emt 0:00:16]} 44. a4 {[%emt 0:00:29]} b6 {[%emt 0:01:46]} 45. Rxa7 {[%emt 0:00:25]} Rb2 {[%emt 0:00:07]} 46. Ra6 {[%emt 0:00:36]} Rxb3 {[%emt 0:00:14]} 47. c5 {[%emt 0:05:38]} Kh5 {[%emt 0:09:13]} 48. cxb6 {[%emt 0:01:59]} f5 {[%emt 0:00:29]} 49. a5 {[%emt 0:04:40]} g4 {[%emt 0:12:27]} 50. hxg4+ {[%emt 0:00:07]} fxg4 {[%emt 0:00:05]} 51. Kh2 {[%emt 0:01:24]} Kh4 {[%emt 0:00:15]} 52. g3+ {[%emt 0:00:04]} Kg5 {[%emt 0:00:03]} 53. Ra8 {[%emt 0:01:10]} Rb5 {[%emt 0:01:44]} 54. a6 {[%emt 0:05:01]} 1-0

[Event "EIWCC 2017"]
[Site "Riga"]
[Date "2017.04.12"]
[Round "2"]
[White "Arakhamia-Grant, Ketevan"]
[Black "Travkina, Anastasia"]
[Result "1-0"]
[ECO "B52"]
[WhiteElo "2374"]
[BlackElo "2287"]
[Annotator "ChessBase"]
[PlyCount "107"]
[EventDate "2017.??.??"]
[EventType "swiss"]
[EventCountry "LAT"]
[SourceTitle "playchess.com"]
[Source "ChessBase"]
[SourceQuality "1"]
[TimeControl "40/5400+30:1800+30"]

1. e4 {[%emt 0:00:00]} c5 {[%emt 0:00:05]} 2. Nf3 {[%emt 0:00:06]} d6 {[%emt 0:00:08]} 3. Bb5+ {[%emt 0:00:50]} Bd7 4. Bxd7+ {[%emt 0:06:31]} Qxd7 {[%emt 0:00:22]} 5. O-O {[%emt 0:00:20]} Nc6 {[%emt 0:00:11]} 6. c3 {[%emt 0:00:45]} Nf6 {[%emt 0:00:10]} 7. Re1 {[%emt 0:00:14]} e6 {[%emt 0:00:22]} 8. d4 {[%emt 0:02:02]} cxd4 {[%emt 0:00:13]} 9. cxd4 {[%emt 0:00:04]} d5 {[%emt 0:00:07]} 10. e5 {[%emt 0:01:09]} Ne4 {[%emt 0:00:07]} 11. a3 {[%emt 0:00:43]} Be7 {[%emt 0:02:13]} 12. Nbd2 {[%emt 0:00:23]} Nxd2 {[%emt 0:00:12]} 13. Bxd2 {[%emt 0:00:04]} O-O {[%emt 0:00:25]} 14. Rc1 {[%emt 0:00:10]} Rfc8 {[%emt 0:00:33]} 15. Rc3 {[%emt 0:00:45]} Nd8 {[%emt 0:00:34]} 16. Rd3 {[%emt 0:03:41]} Qb5 {[%emt 0:01:50]} 17. Bc3 {[%emt 0:02:49]} Rc7 {[%emt 0:16:17]} 18. h4 {[%emt 0:01:05]} h6 {[%emt 0:03:43]} 19. Nh2 {[%emt 0:05:03]} Rac8 {[%emt 0:07:35]} 20. a4 {[%emt 0:09:47]} Qa6 {[%emt 0:07:52]} 21. Ng4 {[%emt 0:00:29]} Rc4 {[%emt 0:08:43]} 22. Rg3 {[%emt 0:06:57]} Kf8 {[%emt 0:10:00]} 23. Ne3 {[%emt 0:09:13]} Rxa4 {[%emt 0:02:26]} 24. Qg4 {[%emt 0:00:36]} Ke8 {[%emt 0:19:09]} 25. Qxg7 {[%emt 0:08:06]} Bxh4 {[%emt 0:06:57]} 26. Rf3 {[%emt 0:01:49]} Be7 {[%emt 0:02:36]} 27. Ng4 {[%emt 0:05:20]} Ra1 {[%emt 0:02:58]} 28. Rxa1 {[%emt 0:01:01]} Qxa1+ {[%emt 0:00:02]} 29. Kh2 {[%emt 0:00:05]} Kd7 {[%emt 0:03:08]} 30. Nxh6 {[%emt 0:09:35]} Qd1 {[%emt 0:01:44]} 31. Ng8 {[%emt 0:11:28]} b6 {[%emt 0:01:16]} 32. Rh3 {[%emt 0:10:09]} a5 {[%emt 0:02:19]} 33. Nxe7 {[%emt 0:03:47]} Kxe7 {[%emt 0:00:02]} 34. Rh8 {[%emt 0:00:18]} Kd7 {[%emt 0:00:04]} 35. Qf8 {[%emt 0:00:54]} Kc6 {[%emt 0:02:19]} 36. Qe8+ {[%emt 0:00:49]} Kc7 {[%emt 0:00:33]} 37. f3 {[%emt 0:00:38]} Qc1 {[%emt 0:00:53]} 38. Qe7+ {[%emt 0:00:34]} Kb8 {[%emt 0:00:01]} 39. Qd6+ {[%emt 0:00:35]} Kb7 {[%emt 0:00:01]} 40. Qe7+ {[%emt 0:00:00]} Kb8 {[%emt 0:01:21]} 41. Rxd8 {[%emt 0:12:56]} Qh6+ {[%emt 0:00:10]} 42. Kg3 {[%emt 0:00:28]} Qg6+ {[%emt 0:00:11]} 43. Kf2 {[%emt 0:02:04]} Qc2+ {[%emt 0:00:08]} 44. Ke3 {[%emt 0:01:29]} Qc1+ {[%emt 0:04:24]} 45. Ke2 {[%emt 0:00:39]} Rxd8 {[%emt 0:00:36]} 46. Qxd8+ {[%emt 0:00:18]} Kb7 {[%emt 0:00:02]} 47. Qd7+ {[%emt 0:01:27]} Ka6 {[%emt 0:00:02]} 48. Qxf7 {[%emt 0:00:37]} a4 {[%emt 0:03:36]} 49. Qxe6 {[%emt 0:02:20]} Qc2+ {[%emt 0:02:48]} 50. Ke3 {[%emt 0:01:53]} Qxg2 {[%emt 0:00:39]} 51. Qxd5 {[%emt 0:02:39]} Qg1+ {[%emt 0:00:05]} 52. Kd2 {[%emt 0:01:23]} Qf2+ {[%emt 0:01:13]} 53. Kc1 {[%emt 0:00:27]} Qf1+ {[%emt 0:01:48]} 54. Kc2 {[%emt 0:00:27]} 1-0

[Event "EIWCC 2017"]
[Site "Riga"]
[Date "2017.04.12"]
[Round "2"]
[White "Osmanodja, Filiz"]
[Black "Chan, Naruna"]
[Result "0-1"]
[ECO "B30"]
[WhiteElo "2370"]
[BlackElo "1981"]
[Annotator "ChessBase"]
[PlyCount "80"]
[EventDate "2017.??.??"]
[EventType "swiss"]
[EventCountry "LAT"]
[SourceTitle "playchess.com"]
[Source "ChessBase"]
[SourceQuality "1"]
[TimeControl "40/5400+30:1800+30"]

1. e4 {[%emt 0:00:00]} c5 {[%emt 0:00:11]} 2. Nf3 {[%emt 0:00:00]} Nc6 {[%emt 0:00:16]} 3. Nc3 {[%emt 0:00:00]} e5 {[%emt 0:00:42]} 4. Bc4 {[%emt 0:00:00]} d6 {[%emt 0:00:37]} 5. d3 {[%emt 0:00:09]} Be7 {[%emt 0:00:29]} 6. Nd2 Nf6 {[%emt 0:00:32]} 7. Nf1 {[%emt 0:00:32]} Nd7 8. Ne3 {[%emt 0:07:52]} Nb6 {[%emt 0:04:22]} 9. Ncd5 {[%emt 0:02:51]} O-O {[%emt 0:10:13]} 10. O-O {[%emt 0:01:48]} Bg5 {[%emt 0:07:44]} 11. c3 {[%emt 0:04:21]} Ne7 {[%emt 0:10:04]} 12. Nxb6 {[%emt 0:03:37]} axb6 {[%emt 0:00:53]} 13. Qb3 {[%emt 0:02:10]} Bd7 {[%emt 0:03:43]} 14. f4 {[%emt 0:14:17]} exf4 {[%emt 0:12:03]} 15. Nd5 {[%emt 0:09:48]} Nxd5 {[%emt 0:05:36]} 16. Bxd5 {[%emt 0:00:03]} Ba4 {[%emt 0:00:20]} 17. Qc4 {[%emt 0:00:43]} b5 {[%emt 0:01:22]} 18. Bxf7+ {[%emt 0:00:07]} Rxf7 {[%emt 0:00:45]} 19. Qd5 {[%emt 0:00:02]} b4 20. Bxf4 {[%emt 0:05:59]} Bxf4 {[%emt 0:04:05]} 21. Rxf4 {[%emt 0:00:01]} Qe7 {[%emt 0:00:24]} 22. cxb4 {[%emt 0:06:18]} cxb4 {[%emt 0:00:44]} 23. Rxf7 {[%emt 0:00:56]} Qxf7 {[%emt 0:00:05]} 24. Qxd6 {[%emt 0:00:14]} Rf8 {[%emt 0:00:51]} 25. h3 {[%emt 0:05:42]} Qf2+ {[%emt 0:04:53]} 26. Kh2 Qxb2 {[%emt 0:09:08]} 27. Qe6+ {[%emt 0:04:20]} Kh8 {[%emt 0:00:34]} 28. Rf1 {[%emt 0:00:03]} Rg8 {[%emt 0:00:39]} 29. Rf5 {[%emt 0:02:42]} h6 {[%emt 0:02:51]} 30. Rh5 {[%emt 0:09:40]} Re8 {[%emt 0:01:21]} 31. Qf7 {[%emt 0:04:15]} Bc6 {[%emt 0:02:43]} 32. Rc5 {[%emt 0:00:02]} Qf6 33. Qh5 {[%emt 0:08:52]} Rd8 {[%emt 0:02:35]} 34. Rf5 {[%emt 0:02:12]} Qe6 {[%emt 0:02:53]} 35. e5 {[%emt 0:05:32]} Rxd3 {[%emt 0:00:49]} 36. Qg4 {[%emt 0:00:44]} Kh7 {[%emt 0:00:38]} 37. Rg5 {[%emt 0:01:11]} Qxg4 {[%emt 0:00:20]} 38. Rxg4 {[%emt 0:00:01]} Re3 {[%emt 0:00:50]} 39. Rxb4 {[%emt 0:00:08]} Rxe5 {[%emt 0:00:11]} 40. Rb2 {[%emt 0:00:00]} Ra5 {[%emt 0:00:37]} 0-1

[Event "EIWCC 2017"]
[Site "Riga"]
[Date "2017.04.12"]
[Round "2"]
[White "Badelka, Olga"]
[Black "Olde, Margareth"]
[Result "1-0"]
[ECO "D31"]
[WhiteElo "2362"]
[BlackElo "2110"]
[Annotator "ChessBase"]
[PlyCount "114"]
[EventDate "2017.??.??"]
[EventType "swiss"]
[EventCountry "LAT"]
[SourceTitle "playchess.com"]
[Source "ChessBase"]
[SourceQuality "1"]
[TimeControl "40/5400+30:1800+30"]

1. d4 {[%emt 0:00:00]} d5 {[%emt 0:00:06]} 2. c4 {[%emt 0:00:00]} e6 {[%emt 0:00:18]} 3. Nc3 {[%emt 0:00:00]} Be7 {[%emt 0:00:18]} 4. cxd5 {[%emt 0:00:07]} exd5 {[%emt 0:00:05]} 5. Bf4 {[%emt 0:02:08]} c6 {[%emt 0:00:30]} 6. Qc2 {[%emt 0:02:11]} Bd6 {[%emt 0:10:52]} 7. Bxd6 {[%emt 0:08:27]} Qxd6 {[%emt 0:00:05]} 8. e3 {[%emt 0:00:06]} Ne7 {[%emt 0:00:24]} 9. Bd3 {[%emt 0:00:12]} b6 {[%emt 0:00:43]} 10. Nf3 {[%emt 0:05:38]} Ba6 {[%emt 0:00:17]} 11. O-O-O {[%emt 0:03:12]} Bxd3 {[%emt 0:02:42]} 12. Qxd3 {[%emt 0:00:06]} Nd7 {[%emt 0:03:00]} 13. h4 {[%emt 0:02:49]} a5 {[%emt 0:09:47]} 14. Kb1 {[%emt 0:01:36]} b5 {[%emt 0:04:51]} 15. e4 {[%emt 0:02:22]} O-O {[%emt 0:01:13]} 16. e5 {[%emt 0:00:50]} Qg6 {[%emt 0:02:11]} 17. Qxg6 {[%emt 0:02:14]} Nxg6 {[%emt 0:00:44]} 18. a4 {[%emt 0:09:18]} bxa4 {[%emt 0:08:16]} 19. Kc2 {[%emt 0:03:34]} Rfb8 {[%emt 0:06:30]} 20. Ra1 {[%emt 0:03:33]} Rb4 {[%emt 0:02:05]} 21. Rxa4 {[%emt 0:00:53]} Nb6 {[%emt 0:10:02]} 22. Rxb4 {[%emt 0:05:03]} axb4 {[%emt 0:00:07]} 23. Ne2 {[%emt 0:00:37]} Nc4 {[%emt 0:03:13]} 24. Kb3 {[%emt 0:02:27]} Ra5 {[%emt 0:06:29]} 25. h5 {[%emt 0:11:47]} Nf8 {[%emt 0:01:06]} 26. Nf4 {[%emt 0:00:22]} Rb5 {[%emt 0:05:21]} 27. Ra1 {[%emt 0:03:09]} Na5+ {[%emt 0:00:20]} 28. Kc2 {[%emt 0:00:12]} h6 {[%emt 0:01:47]} 29. b3 {[%emt 0:03:09]} Ne6 {[%emt 0:02:48]} 30. Nxe6 {[%emt 0:05:54]} fxe6 {[%emt 0:00:06]} 31. Kb2 {[%emt 0:00:18]} Kf7 {[%emt 0:04:26]} 32. g4 {[%emt 0:02:42]} c5 {[%emt 0:01:15]} 33. dxc5 {[%emt 0:00:05]} Rxc5 {[%emt 0:00:04]} 34. Nd4 {[%emt 0:03:53]} Nc6 {[%emt 0:02:25]} 35. Nxc6 {[%emt 0:00:08]} Rxc6 {[%emt 0:00:04]} 36. Rc1 {[%emt 0:02:26]} Rxc1 {[%emt 0:13:05]} 37. Kxc1 {[%emt 0:00:04]} g6 {[%emt 0:00:02]} 38. Kd2 {[%emt 0:00:24]} gxh5 {[%emt 0:00:04]} 39. gxh5 {[%emt 0:00:03]} Ke7 {[%emt 0:00:09]} 40. Kd3 {[%emt 0:00:00]} Kd7 {[%emt 0:00:07]} 41. Kd4 {[%emt 0:00:26]} Kc6 {[%emt 0:01:02]} 42. f4 {[%emt 0:01:03]} Kb6 {[%emt 0:03:39]} 43. f5 {[%emt 0:00:16]} exf5 {[%emt 0:00:07]} 44. Kxd5 {[%emt 0:00:05]} Kc7 {[%emt 0:01:06]} 45. Kc5 {[%emt 0:11:33]} Kd7 {[%emt 0:00:12]} 46. Kxb4 {[%emt 0:00:35]} Ke6 {[%emt 0:00:23]} 47. Kc5 {[%emt 0:01:03]} Kxe5 {[%emt 0:01:00]} 48. b4 {[%emt 0:00:04]} f4 {[%emt 0:00:43]} 49. b5 {[%emt 0:00:03]} f3 {[%emt 0:00:04]} 50. b6 {[%emt 0:00:03]} f2 {[%emt 0:00:06]} 51. b7 {[%emt 0:00:02]} f1=Q {[%emt 0:00:08]} 52. b8=Q+ {[%emt 0:00:02]} Ke4 {[%emt 0:00:13]} 53. Qe8+ {[%emt 0:00:34]} Kf3 {[%emt 0:00:08]} 54. Qf8+ {[%emt 0:00:20]} Ke2 {[%emt 0:00:14]} 55. Qxf1+ {[%emt 0:04:14]} Kxf1 {[%emt 0:00:01]} 56. Kd4 {[%emt 0:00:06]} Ke2 {[%emt 0:01:05]} 57. Ke4 {[%emt 0:00:11]} Kd2 {[%emt 0:00:20]} 1-0

[Event "EIWCC 2017"]
[Site "Riga"]
[Date "2017.04.12"]
[Round "2"]
[White "Mammadova, Gulnar"]
[Black "Sinitsina, Anastassia"]
[Result "1-0"]
[ECO "B40"]
[WhiteElo "2357"]
[BlackElo "2052"]
[Annotator "ChessBase"]
[PlyCount "77"]
[EventDate "2017.??.??"]
[EventType "swiss"]
[EventCountry "LAT"]
[SourceTitle "playchess.com"]
[Source "ChessBase"]
[SourceQuality "1"]
[TimeControl "40/5400+30:1800+30"]

1. e4 {[%emt 0:00:00]} c5 {[%emt 0:00:25]} 2. Nf3 {[%emt 0:00:00]} e6 {[%emt 0:00:16]} 3. b3 {[%emt 0:00:13]} a6 {[%emt 0:00:21]} 4. Bb2 {[%emt 0:00:23]} Nc6 {[%emt 0:00:31]} 5. c4 {[%emt 0:00:44]} Qc7 {[%emt 0:00:46]} 6. Nc3 {[%emt 0:00:47]} Nf6 {[%emt 0:00:36]} 7. g3 {[%emt 0:00:49]} Be7 {[%emt 0:01:31]} 8. Bg2 {[%emt 0:01:23]} e5 {[%emt 0:05:55]} 9. O-O {[%emt 0:01:22]} O-O {[%emt 0:00:33]} 10. Rc1 {[%emt 0:01:54]} d6 {[%emt 0:01:37]} 11. Nd5 {[%emt 0:08:33]} Qd8 {[%emt 0:04:09]} 12. d3 {[%emt 0:00:55]} Nxd5 {[%emt 0:08:40]} 13. cxd5 {[%emt 0:00:39]} Nb8 {[%emt 0:04:01]} 14. b4 {[%emt 0:07:15]} b6 {[%emt 0:02:40]} 15. bxc5 {[%emt 0:02:54]} bxc5 {[%emt 0:00:07]} 16. Nd2 {[%emt 0:00:45]} a5 {[%emt 0:05:41]} 17. f4 {[%emt 0:02:08]} f6 {[%emt 0:00:57]} 18. Nc4 {[%emt 0:02:47]} Qc7 {[%emt 0:04:26]} 19. Bc3 {[%emt 0:03:25]} a4 {[%emt 0:04:45]} 20. Rb1 {[%emt 0:03:49]} Nd7 {[%emt 0:02:21]} 21. Bh3 {[%emt 0:04:08]} Kh8 {[%emt 0:15:35]} 22. Bf5 {[%emt 0:06:03]} g6 {[%emt 0:02:51]} 23. Be6 {[%emt 0:01:24]} Kg7 {[%emt 0:04:47]} 24. Rb2 {[%emt 0:04:10]} Ra6 {[%emt 0:06:37]} 25. Rbf2 {[%emt 0:09:40]} exf4 {[%emt 0:02:16]} 26. gxf4 {[%emt 0:03:30]} Nb6 {[%emt 0:01:29]} 27. Ba5 {[%emt 0:07:20]} Bxe6 {[%emt 0:01:38]} 28. dxe6 {[%emt 0:01:57]} Rxa5 {[%emt 0:03:16]} 29. Nxa5 {[%emt 0:00:02]} d5 {[%emt 0:02:26]} 30. exd5 {[%emt 0:01:21]} Nxd5 {[%emt 0:00:48]} 31. Qxa4 {[%emt 0:03:31]} Nb4 {[%emt 0:04:52]} 32. Qd7 {[%emt 0:06:46]} Qxd7 {[%emt 0:00:24]} 33. exd7 {[%emt 0:00:02]} Rd8 {[%emt 0:01:26]} 34. a3 {[%emt 0:00:48]} Nxd3 {[%emt 0:00:29]} 35. Rd2 {[%emt 0:00:45]} c4 {[%emt 0:00:33]} 36. Nxc4 {[%emt 0:01:25]} Rxd7 {[%emt 0:01:41]} 37. Nb2 {[%emt 0:01:28]} Bc5+ {[%emt 0:01:49]} 38. Kh1 {[%emt 0:00:14]} Ne5 {[%emt 0:00:22]} 39. Rc2 1-0